fUSD/lending_fUSD_20250923
["ID","MTS","AMOUNT","RATE_DAILY","PERIOD"]
[387205747,1758642652672,-1091.304027,0.000232,7]
[387205748,1758642652681,-151.0,0.000232,7]
[387205749,1758642652691,-155.540736,0.000232,7]
[387205750,1758642652701,-1091.304027,0.000232,7]
[387205751,1758642652714,-151.0,0.000232,7]
[387205752,1758642652724,-193.145102,0.000232,7]
[387205753,1758642652733,-151.0,0.000232,7]
[387205754,1758642652743,-151.0,0.000232,7]
[387205755,1758642652755,-151.0,0.000232,7]
[387205756,1758642652764,-151.0,0.000232,7]
[387205757,1758642652773,-151.0,0.000232,7]
[387205758,1758642652784,-155.962402,0.000232,7]
[387205759,1758642652793,-151.0,0.000232,7]
[387205760,1758642652802,-151.0,0.000232,7]
[387205761,1758642652812,-151.0,0.000232,7]
[387205762,1758642652821,-184.206551,0.000232,7]
[387205763,1758642652832,-151.0,0.000232,7]
[387205764,1758642652842,-335.031487,0.000232,7]
[387205765,1758642652853,-335.031487,0.000232,7]
[387205766,1758642653029,-335.031487,0.000232,7]
[387205767,1758642653039,-335.031487,0.000232,7]
[387205768,1758642653048,-151.0,0.000232,7]
[387205769,1758642653058,-256.685846,0.000232,7]
[387205770,1758642653067,-199.96757,0.000232,7]
[387205771,1758642653076,-165.709554,0.000232,7]
[387205772,1758642653086,-199.96757,0.000232,7]
[387205773,1758642653095,-165.709554,0.000232,7]
[387205774,1758642653106,-199.96757,0.000232,7]
[387205775,1758642653115,-151.0,0.000232,7]
[387205776,1758642653125,-165.709554,0.000232,7]
[387205777,1758642653135,-151.0,0.000232,7]
[387205778,1758642653145,-199.96757,0.000232,7]
[387205779,1758642653154,-165.709554,0.000232,7]
[387205780,1758642653163,-151.0,0.000232,7]
[387205781,1758642653172,-151.0,0.000232,7]
[387205782,1758642653182,-151.0,0.000232,7]
[387205783,1758642653192,-151.0,0.000232,7]
[387205784,1758642653201,-158.692752,0.000232,7]
[387205785,1758642653210,-600.0,0.00023206,2]
[387205786,1758642653220,-250.0,0.0002323,2]
[387205787,1758642653230,-500.0,0.00023288,5]
[387205788,1758642653239,-1000.0,0.00023347,2]
[387205789,1758642653249,-210.36012215,0.0002337,2]
[387205790,1758642653258,-449.0,0.00023431,2]
[387205791,1758642653268,-3394.0,0.00023452,2]
[387205792,1758642653278,-2042.0,0.00023452,2]
[387205793,1758642653287,-786.0,0.00023452,2]
[387205794,1758642653296,-602.0,0.00023452,2]
[387205795,1758642653306,-1305.0,0.00023452,2]
[387205796,1758642653315,-1582.0,0.00023452,2]
[387205797,1758642653324,-569.0,0.00023452,2]
[387205798,1758642653334,-814.0,0.00023452,2]
[387205799,1758642653343,-4177.0,0.00023452,2]
[387205800,1758642653352,-4523.0,0.00023452,2]
[387205801,1758642653362,-18894.0,0.00023452,2]
[387205802,1758642653371,-681.34970653,0.00023461,2]
[387205803,1758642653381,-1531.0,0.00023462,2]
[387205804,1758642653390,-514.99519944,0.00023462,2]
[387205805,1758642653400,-1000.0,0.00023561,2]
[387205806,1758642653409,-500.0,0.00023562,5]
[387205807,1758642653419,-322.68,0.00023598,2]
[387205808,1758642653428,-1480.63,0.00023598,2]
[387205809,1758642653437,-1501.87263969,0.00023616,2]
[387205810,1758642653446,-449.0,0.00023705,2]
[387205811,1758642653455,-1531.0,0.00023736,2]
[387205812,1758642653465,-600.0,0.00023754,2]
[387205813,1758642653475,-5800.0,0.00023799,2]
[387205814,1758642653484,-5800.0,0.00023808,2]
[387205815,1758642653493,-5800.0,0.00023816,2]
[387205816,1758642653502,-5800.0,0.00023825,2]
[387205817,1758642653512,-2500.0,0.00023833,7]
[387205818,1758642653521,-5800.0,0.00023833,2]
[387205819,1758642653540,-150.0,0.00023835,2]
[387205820,1758642653551,-500.0,0.00023836,5]
[387205821,1758642653560,-500.79292713,0.00023917,2]
[387205822,1758642653570,-200548.4,0.00023918,2]
[387205823,1758642653580,-449.0,0.00023979,2]
[387205824,1758642653590,-4000.0,0.00024,4]
[387205825,1758642653600,-1000.0,0.00024,5]
[387205826,1758642653610,-1531.0,0.0002401,2]
[387205827,1758642653620,-300.0,0.00024026,2]
[387205828,1758642653629,-213.99102661,0.00024109,2]
[387205829,1758642653640,-500.0,0.0002411,5]
[387205830,1758642653650,-1000.0,0.00024134,2]
[387205831,1758642653659,-170.0,0.00024164,7]
[387205832,1758642653669,-600.0,0.00024164,2]
[387205833,1758642653679,-326.0,0.00024164,7]
[387205834,1758642653688,-333.0,0.0002417,2]
[387205835,1758642653698,-411.06,0.00024204,2]
[387205836,1758642653709,-171.09,0.00024204,2]
[387205837,1758642653719,-150.19,0.00024205,2]
[387205838,1758642653729,-150.94,0.00024205,2]
[387205839,1758642653739,-300.0,0.00024205,2]
[387205840,1758642653750,-449.0,0.00024253,2]
[387205841,1758642653759,-1531.0,0.00024284,2]
[387205842,1758642653769,-600.0,0.00024302,2]
[387205843,1758642653779,-152.0,0.00024333,4]
[387205844,1758642653789,-500.0,0.00024384,5]
[387205845,1758642653799,-476767.30322576,0.0002444,2]
[387205846,1758642654515,-684.1663532,0.0002444,2]
[387205847,1758642654526,-3189.32274071,0.0002444,2]
[387205848,1758642654538,-418.54789703,0.0002444,2]
[387205849,1758642654550,-2789.11460488,0.0002444,2]
[387205850,1758642654768,-5798.2925,0.0002444,2]
[387205851,1758642654795,-2939.79440843,0.0002444,2]
[387205852,1758642654831,-151.0,0.00022,7]
[387205853,1758642654841,-10745.59238417,0.0002444,2]
[387205854,1758642654852,-530.69259837,0.0002444,2]
[387205855,1758642655657,-2508.27376139,0.000199,2]
[387205856,1758642655667,-2508.27376134,0.0002134,2]
[387205857,1758642655676,-531943.97495896,0.00022,2]
[387205858,1758642655686,-1049.015211,0.00022,7]
[387205859,1758642655695,-454.42477,0.00022,7]
[387205860,1758642655707,-151.0,0.00022,7]
[387205861,1758642655718,-153.915536,0.00022,7]
[387205862,1758642655729,-151.0,0.00022,7]
[387205863,1758642655738,-454.42477,0.00022,7]
[387205864,1758642655748,-1049.015211,0.00022,7]
[387205865,1758642655759,-151.0,0.00022,7]
[387205866,1758642655768,-1049.015211,0.00022,7]
[387205867,1758642655778,-454.42477,0.00022,7]
[387205868,1758642655788,-454.42477,0.00022,7]
[387205869,1758642655798,-1049.015211,0.00022,7]
[387205870,1758642655807,-1049.015211,0.00022,7]
[387205871,1758642655817,-454.42477,0.00022,7]
[387205872,1758642655828,-1049.015211,0.00022,7]
[387205873,1758642655837,-454.42477,0.000232,7]
[387205874,1758642655847,-151.0,0.000232,7]
[387205875,1758642655857,-151.0,0.000232,7]
[387205876,1758642655867,-1049.015211,0.000232,7]
[387205877,1758642655876,-454.42477,0.000232,7]
[387205878,1758642655886,-1049.015211,0.000232,7]
[387205879,1758642655896,-129781.17328745,0.0002444,2]
[387205880,1758642655905,-364911.22687516,0.0002444,2]
[387205881,1758642656015,-941.01692054,0.0002278,2]
[387205882,1758642656027,-1567.2568408,0.0002278,2]
[387205883,1758642656036,-17076.28925619,0.0002444,2]
[387205884,1758642657307,-454.42477,0.00022,7]
[387205885,1758642657316,-211.57523,0.00022,7]
[387205886,1758642657328,-837.439981,0.00022,7]
[387205887,1758642657337,-454.42477,0.00022,7]
[387205888,1758642657347,-454.42477,0.00022,7]
[387205889,1758642657358,-1049.015211,0.00022,7]
[387205890,1758642657367,-1049.015211,0.00022,7]
[387205891,1758642657376,-454.42477,0.00022,7]
[387205892,1758642657387,-454.42477,0.00022,7]
[387205893,1758642657399,-1049.015211,0.00022,7]
[387205894,1758642657410,-454.42477,0.00022,7]
[387205895,1758642657419,-1049.015211,0.00022,7]
[387205896,1758642657432,-163.96,0.00022928,2]
[387205897,1758642657442,-454.42477,0.000232,7]
[387205898,1758642657452,-1049.015211,0.000232,7]
[387205899,1758642657461,-163.96,0.00023946,2]
[387205900,1758642657470,-2508.27376134,0.00024221,2]
[387205901,1758642657480,-91604.43863034,0.0002444,2]
[387205902,1758642657492,-2054.54483863,0.0002444,2]
[387205903,1758642657526,-454.42477,0.000232,7]
[387205904,1758642657536,-124352.50039968,0.0002444,2]
[387205905,1758642657546,-151.0,0.0002444,7]
[387205906,1758642657556,-211.367054,0.0002444,7]
[387205907,1758642657565,-211.367054,0.0002444,7]
[387205908,1758642657575,-211.367054,0.0002444,7]
[387205909,1758642657587,-211.36705,0.0002444,7]
[387205910,1758642657596,-151.0,0.0002444,7]
[387205911,1758642657606,-151.0,0.0002444,7]
[387205912,1758642657616,-151.0,0.0002444,7]
[387205913,1758642657625,-253.195981,0.0002444,7]
[387205914,1758642657635,-162.992644,0.0002444,7]
[387205915,1758642657644,-151.0,0.0002444,7]
[387205916,1758642657654,-163.420634,0.0002444,7]
[387205917,1758642657664,-151.0,0.0002444,7]
[387205918,1758642657674,-363.447921,0.0002444,7]
[387205919,1758642657683,-151.0,0.0002444,7]
[387205920,1758642657693,-151.0,0.0002444,7]
[387205921,1758642657703,-151.0,0.0002444,7]
[387205922,1758642657718,-151.0,0.0002444,7]
[387205923,1758642657728,-151.0,0.0002444,7]
[387205924,1758642657738,-363.447921,0.0002444,7]
[387205925,1758642657751,-151.0,0.0002444,7]
[387205926,1758642657760,-151.0,0.0002444,7]
[387205927,1758642657770,-363.447921,0.0002444,7]
[387205928,1758642657780,-151.0,0.0002444,7]
[387205929,1758642657790,-363.447925,0.0002444,7]
[387205930,1758642657800,-151.0,0.0002444,7]
[387205931,1758642657809,-151.0,0.0002444,7]
[387205932,1758642657819,-151.0,0.0002444,7]
[387205933,1758642657828,-421.655623,0.0002444,7]
[387205934,1758642657838,-151.0,0.0002444,7]
[387205935,1758642657847,-421.655623,0.0002444,7]
[387205936,1758642657857,-151.0,0.0002444,7]
[387205937,1758642657866,-421.655623,0.0002444,7]
[387205938,1758642657876,-421.655629,0.0002444,7]
[387205939,1758642657885,-151.0,0.0002444,7]
[387205940,1758642657895,-151.0,0.0002444,7]
[387205941,1758642657904,-513.145033,0.0002444,7]
[387205942,1758642657914,-513.145033,0.0002444,7]
[387205943,1758642657923,-513.145033,0.0002444,7]
[387205944,1758642657932,-151.0,0.0002444,7]
[387205945,1758642657942,-513.145028,0.0002444,7]
[387205946,1758642657950,-151.0,0.0002444,7]
[387205947,1758642657960,-151.0,0.0002444,7]
[387205948,1758642657969,-151.0,0.0002444,7]
[387205949,1758642657978,-151.0,0.0002444,7]
[387205950,1758642657988,-218.072331,0.0002444,7]
[387205951,1758642657998,-151.0,0.0002444,7]
[387205952,1758642658008,-151.0,0.0002444,7]
[387205953,1758642658018,-319.788203,0.0002444,7]
[387205954,1758642658028,-319.788203,0.0002444,7]
[387205955,1758642658037,-319.788203,0.0002444,7]
[387205956,1758642658046,-319.788198,0.0002444,7]
[387205957,1758642658055,-241.869483,0.0002444,7]
[387205958,1758642658065,-241.869483,0.0002444,7]
[387205959,1758642658074,-241.869483,0.0002444,7]
[387205960,1758642658083,-241.869491,0.0002444,7]
[387205961,1758642658093,-972.115571,0.0002444,7]
[387205962,1758642658102,-972.115571,0.0002444,7]
[387205963,1758642658111,-972.115571,0.0002444,7]
[387205964,1758642658120,-972.115577,0.0002444,7]
[387205965,1758642658129,-151.0,0.0002444,7]
[387205966,1758642658138,-151.0,0.0002444,7]
[387205967,1758642658148,-151.0,0.0002444,7]
[387205968,1758642658157,-194.420263,0.0002444,7]
[387205969,1758642658167,-151.0,0.0002444,7]
[387205970,1758642658176,-194.420263,0.0002444,7]
[387205971,1758642658185,-151.0,0.0002444,7]
[387205972,1758642658195,-194.420263,0.0002444,7]
[387205973,1758642658204,-151.0,0.0002444,7]
[387205974,1758642658214,-194.420262,0.0002444,7]
[387205975,1758642658223,-151.0,0.0002444,7]
[387205976,1758642658233,-1091.304027,0.0002444,7]
[387205977,1758642658243,-151.0,0.0002444,7]
[387205978,1758642658252,-1091.304027,0.0002444,7]
[387205979,1758642658261,-151.0,0.0002444,7]
[387205980,1758642658271,-1091.304027,0.0002444,7]
[387205981,1758642658280,-151.0,0.0002444,7]
[387205982,1758642658289,-1091.304031,0.0002444,7]
[387205983,1758642658299,-151.0,0.0002444,7]
[387205984,1758642658308,-151.0,0.0002444,7]
[387205985,1758642658324,-151.0,0.0002444,7]
[387205986,1758642658344,-151.0,0.0002444,7]
[387205987,1758642658362,-192.566683,0.0002444,7]
[387205988,1758642658382,-151.0,0.0002444,7]
[387205989,1758642658398,-151.0,0.0002444,7]
[387205990,1758642658415,-151.0,0.0002444,7]
[387205991,1758642658433,-168.227144,0.0002444,7]
[387205992,1758642658453,-157.109025,0.0002444,7]
[387205993,1758642658472,-335.031487,0.0002444,7]
[387205994,1758642658490,-335.031487,0.0002444,7]
[387205995,1758642658510,-335.031487,0.0002444,7]
[387205996,1758642658526,-335.03148126,0.0002444,7]
[387205997,1758642658540,-151.0,0.0002444,7]
[387205998,1758642658560,-199.96757,0.0002444,7]
[387205999,1758642658575,-165.709554,0.0002444,7]
[387206000,1758642658594,-199.96757,0.0002444,7]
[387206001,1758642658607,-165.709554,0.0002444,7]
[387206002,1758642658622,-199.96757,0.0002444,7]
[387206003,1758642658645,-151.0,0.0002444,7]
[387206004,1758642658660,-165.709554,0.0002444,7]
[387206005,1758642658676,-151.0,0.0002444,7]
[387206006,1758642658691,-199.96757,0.0002444,7]
[387206007,1758642658707,-165.709548,0.0002444,7]
[387206008,1758642658723,-151.0,0.0002444,7]
[387206009,1758642658740,-151.0,0.0002444,7]
[387206010,1758642658756,-173.919975,0.0002444,7]
[387206011,1758642658771,-454.42477,0.0002444,7]
[387206012,1758642658788,-151.0,0.0002444,7]
[387206013,1758642658804,-1049.015211,0.0002444,7]
[387206014,1758642658819,-153.30815,0.0002444,7]
[387206015,1758642658834,-454.42477,0.0002444,7]
[387206016,1758642658849,-1049.015211,0.0002444,7]
[387206017,1758642658863,-454.42477,0.0002444,7]
[387206018,1758642658879,-1049.015211,0.0002444,7]
[387206019,1758642658894,-373.07297731,0.00024475,2]
[387206020,1758642658909,-35237.71,0.000245,7]
[387206021,1758642658923,-449.0,0.00024527,2]
[387206022,1758642658938,-210.36012215,0.00024527,2]
[387206023,1758642658953,-500.0,0.00024555,2]
[387206024,1758642658968,-1531.0,0.00024558,2]
[387206025,1758642658985,-500.0,0.00024658,5]
[387206026,1758642659000,-1000.0,0.00024658,2]
[387206027,1758642659016,-659.27,0.00024658,2]
[387206028,1758642659032,-3292.0,0.00024716,2]
[387206029,1758642659050,-500.0,0.00024753,2]
[387206030,1758642659066,-230882.84602071,0.000248,2]
[387206031,1758642659086,-487.015,0.000248,2]
[387206032,1758642659105,-8808.04801292,0.000248,2]
[387206033,1758642659131,-1049.015211,0.00022,7]
[387206034,1758642659146,-130.00089172,0.000248,2]
[387206036,1758642812994,150.0,0.00019,5]
[387206037,1758642817191,500.0,0.00013699,2]
[387206038,1758642831177,300.42,0.00021945,30]
[387206040,1758643057107,170.44,0.0001679,2]
[387206041,1758643148442,510.95249259,0.00019,5]
[387206042,1758643572558,201.0,0.000182,2]
[387206043,1758643617960,161.41,0.0001041,2]
[387206044,1758643619088,161.41,0.00013013,2]
[387206045,1758643619162,161.41,0.00015615,2]
[387206046,1758643619215,161.41,0.00018218,2]
[387206047,1758643624695,1000.0,0.00030136,120]
[387206048,1758643794707,275.38,0.00021945,30]
[387206049,1758643821415,134340.13286479,0.00030137,120]
[387206058,1758643832813,-314.47312662,0.00019,2]
[387206059,1758643832822,-304.48272318,0.00019,2]
[387206060,1758643832832,-250.0,0.0001905,2]
[387206061,1758643832842,-290.37659138,0.00019098,2]
[387206062,1758643832852,-1200.0,0.00019197,2]
[387206063,1758643832861,-300.0,0.00019197,2]
[387206064,1758643832871,-646.86666754,0.00019198,2]
[387206065,1758643832880,-500.0,0.00019198,2]
[387206066,1758643832890,-500.0,0.00019198,2]
[387206068,1758643832900,-500.0,0.00019198,2]
[387206070,1758643832910,-500.0,0.00019198,2]
[387206071,1758643832919,-500.0,0.00019198,2]
[387206073,1758643832929,-378.58611183,0.00019198,2]
[387206074,1758643832939,-500.0,0.00019198,2]
[387206075,1758643832948,-175.34094727,0.00019198,2]
[387206076,1758643832957,-500.0,0.00019198,2]
[387206077,1758643832967,-500.0,0.00019198,2]
[387206078,1758643832976,-500.0,0.00019198,2]
[387206079,1758643832986,-500.0,0.00019198,2]
[387206080,1758643832996,-500.0,0.00019198,2]
[387206081,1758643833006,-500.0,0.00019198,2]
[387206082,1758643833019,-500.0,0.00019198,2]
[387206083,1758643833028,-500.0,0.00019198,2]
[387206084,1758643833038,-500.0,0.00019198,2]
[387206085,1758643833050,-846.73975156,0.00019198,2]
[387206087,1758643833064,-1000.0,0.000192,2]
[387206089,1758643833074,-197.0,0.0001938,2]
[387206091,1758643833085,-168.0,0.00019545,2]
[387206093,1758643833096,-168.0,0.00019685,2]
[387206094,1758643833106,-936.40709463,0.00019699,2]
[387206095,1758643833116,-257.91778498,0.00019759,2]
[387206096,1758643833126,-168.0,0.00019766,2]
[387206097,1758643833138,-1000.0,0.000198,2]
[387206098,1758643833149,-168.0,0.0001982,2]
[387206099,1758643833163,-151.0,0.00019887,2]
[387206101,1758643833174,-322.6107,0.00019887,2]
[387206103,1758643833183,-151.0,0.00019887,2]
[387206105,1758643833193,-151.0,0.00019887,2]
[387206106,1758643833203,-500.0,0.00019887,2]
[387206109,1758643833213,-500.0,0.00019887,2]
[387206110,1758643833223,-500.0,0.00019887,2]
[387206113,1758643833241,-500.0,0.00019887,2]
[387206114,1758643833252,-500.0,0.00019887,2]
[387206115,1758643833262,-500.0,0.00019887,2]
[387206116,1758643833272,-151.0,0.00019887,2]
[387206118,1758643833282,-151.0,0.00019887,2]
[387206120,1758643833292,-151.0,0.00019887,2]
[387206122,1758643833303,-151.0,0.00019887,2]
[387206124,1758643833312,-151.0,0.00019887,2]
[387206126,1758643833322,-151.0,0.00019887,2]
[387206128,1758643833331,-151.0,0.00019887,2]
[387206130,1758643833341,-500.0,0.00019887,2]
[387206132,1758643833350,-500.0,0.00019887,2]
[387206134,1758643833359,-500.0,0.00019887,2]
[387206136,1758643833368,-221.76172121,0.00019887,2]
[387206138,1758643833378,-5767.5991,0.00019899,2]
[387206140,1758643833389,-717.2998,0.000199,2]
[387206143,1758643833399,-168.0,0.00019904,2]
[387206145,1758643833408,-290.37659136,0.00019965,2]
[387206149,1758643833419,-150.0,0.0002,7]
[387206152,1758643833429,-500.0,0.0002,2]
[387206153,1758643833438,-500.0,0.0002,2]
[387206154,1758643833448,-533.32015032,0.0002,2]
[387206155,1758643833458,-168.0,0.0002014,2]
[387206156,1758643833467,-168.0,0.00020215,2]
[387206157,1758643833476,-168.0,0.00020437,2]
[387206158,1758643833486,-4177.0,0.00020445,2]
[387206159,1758643833495,-16083.79285831,0.00020445,2]
[387206160,1758643833508,-2810.20714169,0.00020445,2]
[387206161,1758643833520,-168.0,0.00020464,2]
[387206162,1758643833530,-193.0,0.0002057,2]
[387206163,1758643833540,-731.34,0.00020672,2]
[387206165,1758643833550,-168.0,0.00020688,2]
[387206167,1758643833560,-168.0,0.0002069,2]
[387206169,1758643833570,-165.96,0.00020721,2]
[387206171,1758643833579,-200.0,0.00020761,2]
[387206173,1758643833589,-1247.45,0.00020781,2]
[387206175,1758643833598,-1644.01,0.00020814,2]
[387206176,1758643833608,-150.0,0.00020815,2]
[387206177,1758643833618,-161.41,0.0002082,2]
[387206178,1758643833628,-936.40709462,0.00020832,2]
[387206179,1758643833637,-435.37,0.00020896,2]
[387206180,1758643833647,-175.5,0.00020898,2]
[387206181,1758643833657,-167.58083812,0.00020899,2]
[387206182,1758643833666,-198.08942189,0.00020899,2]
[387206183,1758643833676,-500.0,0.00020899,2]
[387206184,1758643833686,-150.0,0.000209,2]
[387206185,1758643833696,-250.0,0.000209,2]
[387206186,1758643833705,-2500.0,0.000209,2]
[387206187,1758643833714,-250.0,0.000209,2]
[387206188,1758643833724,-2500.0,0.000209,2]
[387206189,1758643833735,-1040.32884022,0.000209,2]
[387206190,1758643833747,-1459.67115978,0.000209,2]
[387206191,1758643833757,-2500.0,0.000209,2]
[387206192,1758643833769,-2500.0,0.000209,2]
[387206193,1758643833779,-500.0,0.000209,2]
[387206194,1758643833788,-500.0,0.000209,2]
[387206195,1758643833799,-168.8589038,0.000209,2]
[387206196,1758643833808,-10876.14828993,0.0002091,2]
[387206197,1758643833818,-420.0,0.00020921,2]
[387206198,1758643833828,-3391.0,0.00020932,2]
[387206199,1758643833837,-602.0,0.00020932,2]
[387206200,1758643833846,-1305.0,0.00020932,2]
[387206201,1758643833856,-1582.0,0.00020932,2]
[387206202,1758643833866,-569.0,0.00020932,2]
[387206203,1758643833876,-200.0,0.00020986,2]
[387206204,1758643833888,-250.0,0.00020987,2]
[387206205,1758643833898,-712.76,0.00021019,2]
[387206206,1758643833908,-277.4,0.00021019,2]
[387206207,1758643833918,-954.67222157,0.00021022,2]
[387206208,1758643833930,-725.32777843,0.00021022,2]
[387206209,1758643833940,-150.0,0.00021029,7]
[387206210,1758643833951,-1000.0,0.00021092,2]
[387206211,1758643834148,-168.0,0.0002116,2]
[387206212,1758643834158,-179.66746201,0.00021213,2]
[387206213,1758643834187,-343.7158764,0.00020899,2]
[387206214,1758643834197,-336.97632965,0.00021213,2]
[387206215,1758643834207,-234.5556776,0.00021256,2]
[387206216,1758643834217,-168.0,0.00021266,2]
[387206217,1758643834227,-40.01460583,0.00021549,2]
[387206218,1758643834240,-301.75539417,0.00021549,2]
[387206219,1758643834250,-189.0,0.0002175,2]
[387206220,1758643834260,-200.0,0.00021773,2]
[387206221,1758643834271,-426.96960583,0.00021918,2]
[387206222,1758643834357,-608.24647079,0.00021918,2]
[387206223,1758643834369,-1198.520004,0.00021918,2]
[387206224,1758643834380,-293.321,0.00021918,2]
[387206225,1758643834392,-2472.94291938,0.00021918,2]
[387206226,1758643834402,-150.43,0.00021973,2]
[387206227,1758643834411,-250.97,0.00022,2]
[387206228,1758643834421,-1151.6,0.00022,2]
[387206229,1758643834431,-961.99382816,0.00022036,2]
[387206233,1758643838433,-2693.72560857,0.00020445,2]
[387206238,1758643838961,-1829.27439143,0.00020445,2]
[387206241,1758643838977,-290.37659136,0.00020832,2]
[387206243,1758643838994,-423.19817184,0.00022036,2]
[387206245,1758643839011,-600.0,0.0002211,2]
[387206247,1758643839027,-200.0,0.00022221,2]
[387206250,1758643839043,-150.0,0.00022389,4]
[387206252,1758643839062,-150.0,0.00022389,4]
[387206254,1758643839080,-150.0,0.00022389,4]
[387206257,1758643839095,-150.0,0.00022389,4]
[387206259,1758643839112,-150.0,0.00022389,4]
[387206261,1758643839130,-150.0,0.00022389,4]
[387206263,1758643839148,-150.0,0.00022389,4]
[387206266,1758643839165,-150.0,0.00022389,4]
[387206268,1758643839180,-150.0,0.00022389,4]
[387206271,1758643839197,-200.0,0.0002256,2]
[387206273,1758643839213,-1905.04,0.000227,2]
[387206275,1758643839230,-150.0,0.0002271,2]
[387206278,1758643839246,-587.0,0.00022799,2]
[387206280,1758643839263,-1000.0,0.000229,2]
[387206283,1758643839280,-370.0,0.0002293,2]
[387206285,1758643839297,-2351.0,0.0002302,2]
[387206288,1758643839316,-200.0,0.00023347,2]
[387206290,1758643839331,-4177.0,0.00023445,2]
[387206293,1758643839349,-1417.48,0.00023445,2]
[387206296,1758643839365,-4523.0,0.00023445,2]
[387206298,1758643839381,-152.602332,0.0002356,2]
[387206299,1758643839398,-250.97,0.00023588,2]
[387206300,1758643839414,-1151.6,0.00023588,2]
[387206301,1758643839430,-150.0,0.00023633,4]
[387206302,1758643839447,-150.0,0.00023633,4]
[387206303,1758643839464,-238.7,0.00023835,2]
[387206304,1758643839482,-500.0,0.00023943,2]
[387206305,1758643839499,-2299.999999,0.00024,7]
[387206306,1758643839516,-362.0,0.0002412,2]
[387206308,1758643839532,-200.0,0.00024134,2]
[387206310,1758643839550,-195.14,0.00024306,2]
[387206312,1758643839568,-2348.87197943,0.00024357,2]
[387206315,1758643839585,-744.19247062,0.00024457,2]
[387206317,1758643839601,-311.3,0.00024485,2]
[387206320,1758643839617,-311.3,0.00024485,2]
[387206322,1758643839633,-311.3,0.00024485,2]
[387206325,1758643839648,-311.3,0.00024485,2]
[387206327,1758643839663,-311.3,0.00024485,2]
[387206330,1758643839678,-8650.81318625,0.00024495,2]
[387206414,1758643840661,-5346.77863652,0.00024495,2]
[387206422,1758643841790,-807.04132337,0.00024495,2]
[387206423,1758643841801,-484.3661763,0.00024495,2]
[387206424,1758643842008,-477.80224249,0.00024495,2]
[387206425,1758643842072,-614827.12837496,0.00024495,2]
[387206426,1758643842083,-1682.13240809,0.00024495,2]
[387206453,1758643846622,-519.48232747,0.00019196,2]
[387206454,1758643846632,-372.40867253,0.00020445,2]
[387206455,1758643846684,-1527.47754312,0.00020445,2]
[387206456,1758643846695,-354.20168663,0.00020445,2]
[387206528,1758643847695,-1976.91209772,0.00020445,2]
[387206530,1758643847704,-4231.0,0.00023445,2]
[387206532,1758643847713,-16902.08790228,0.00024495,2]
[387206534,1758643847725,-2089.22709248,0.00024495,2]
[387206639,1758643923492,500.0,0.00019,5]
[387206640,1758643931390,386.0,0.00019,5]
[387206641,1758643972926,250.0,0.00015,2]
[387206642,1758643974002,300.0,0.00017,2]
[387206643,1758644017031,162.052743,0.00018475,2]
[387206644,1758644018244,883.223624,0.00018475,2]
[387206645,1758644018279,162.052743,0.00017995,2]
[387206646,1758644018724,883.223624,0.00018233,2]